fUSD/lending_fUSD_20260316
["ID","MTS","AMOUNT","RATE_DAILY","PERIOD"]
[408447790,1773647432253,-2370.79,0.00018052,2]
[408447791,1773647432264,-16687.07,0.0001807,2]
[408447793,1773647432273,-300.97,0.0001815,2]
[408447795,1773647432283,-306.44948031,0.0001815,2]
[408447797,1773647432293,-2000.0,0.00018171,2]
[408447799,1773647432303,-2500.0,0.0001826,2]
[408447801,1773647432313,-300.0,0.0001826,2]
[408447803,1773647432323,-154.67447538,0.0001826,2]
[408447805,1773647432332,-1590.99,0.00018687,2]
[408447806,1773647432341,-2000.0,0.00018692,2]
[408447807,1773647432351,-4246.41,0.00018701,2]
[408447808,1773647432361,-305.15355081,0.00018804,2]
[408447810,1773647432370,-506.21838778,0.00018873,2]
[408447811,1773647432381,-151.0,0.00018888,2]
[408447813,1773647432391,-234.76486537,0.00018888,2]
[408447816,1773647432401,-305.15355075,0.00018926,2]
[408447817,1773647432411,-500.0,0.00018999,2]
[408447819,1773647432421,-500.0,0.00018999,2]
[408447822,1773647432440,-500.0,0.00018999,2]
[408447823,1773647432452,-500.0,0.00018999,2]
[408447824,1773647432462,-500.0,0.00018999,2]
[408447825,1773647432471,-527.9720124,0.00018999,2]
[408447826,1773647432483,-305.15355075,0.00019048,2]
[408447827,1773647432493,-794.9533,0.000191,2]
[408447828,1773647432502,-200.0,0.000191,6]
[408447829,1773647432511,-1590.99,0.00019154,2]
[408447830,1773647432521,-305.15355075,0.00019169,2]
[408447831,1773647432532,-2000.0,0.000192,2]
[408447832,1773647432541,-305.15355075,0.00019291,2]
[408447833,1773647432551,-500.0,0.0001932,2]
[408447834,1773647432560,-500.0,0.0001932,2]
[408447835,1773647432569,-350.10617746,0.0001932,2]
[408447836,1773647432577,-500.0,0.0001932,2]
[408447837,1773647432587,-500.0,0.0001932,2]
[408447838,1773647432596,-500.0,0.0001932,2]
[408447839,1773647432605,-500.0,0.0001932,2]
[408447840,1773647432614,-500.0,0.0001932,2]
[408447841,1773647432623,-500.0,0.0001932,2]
[408447842,1773647432633,-62676.7498,0.00019321,2]
[408447843,1773647432642,-305.15355075,0.00019413,2]
[408447844,1773647432651,-305.15355075,0.00019535,2]
[408447845,1773647432661,-1590.99,0.00019621,2]
[408447846,1773647432670,-168.0,0.00019622,2]
[408447847,1773647432679,-305.15355075,0.00019656,2]
[408447848,1773647432689,-150.0,0.00019725,2]
[408447849,1773647432698,-1140.0,0.00019753,2]
[408447850,1773647432707,-195.0,0.00019767,2]
[408447851,1773647432716,-2500.0,0.00019767,2]
[408447852,1773647432726,-1990.07,0.00019767,2]
[408447853,1773647432736,-305.15355075,0.00019778,2]
[408447854,1773647432746,-500.0,0.0001978,2]
[408447855,1773647432756,-150.0,0.0001978,2]
[408447856,1773647432766,-1000.0,0.00019799,2]
[408447857,1773647432775,-721.53087,0.000198,2]
[408447858,1773647432785,-721.53087,0.000198,2]
[408447859,1773647432794,-168.0,0.00019819,2]
[408447860,1773647432807,-572.80387737,0.00019829,2]
[408447861,1773647432817,-200.0,0.00019835,2]
[408447862,1773647432826,-967.224,0.00019835,2]
[408447863,1773647432836,-1240.99124724,0.0001989,2]
[408447864,1773647432846,-515.64942736,0.00019899,2]
[408447865,1773647432855,-500.0,0.00019899,2]
[408447866,1773647432865,-503.96427404,0.00019899,2]
[408447867,1773647432876,-505.49118115,0.00019899,2]
[408447868,1773647432885,-500.0,0.00019899,2]
[408447869,1773647432895,-301.90431271,0.00019899,2]
[408447870,1773647432904,-301.90431267,0.00019899,2]
[408447871,1773647432914,-301.90431267,0.00019899,2]
[408447872,1773647432923,-301.90431267,0.00019899,2]
[408447873,1773647432932,-301.90431267,0.00019899,2]
[408447874,1773647432941,-301.90431267,0.000199,2]
[408447875,1773647432951,-301.90431267,0.000199,2]
[408447876,1773647432962,-301.90431267,0.000199,2]
[408447877,1773647432971,-301.90431267,0.000199,2]
[408447878,1773647432980,-18184.4901417,0.000199,3]
[408447879,1773647432990,-305.15355075,0.000199,2]
[408447880,1773647433003,-301.90431267,0.000199,2]
[408447881,1773647433013,-5000.0,0.000199,2]
[408447882,1773647433022,-1140.0,0.00019969,2]
[408447883,1773647433032,-500.251219,0.00019973,2]
[408447884,1773647433041,-263.93544588,0.00019973,2]
[408447885,1773647433051,-500.47353032,0.00019973,2]
[408447886,1773647433061,-500.0,0.00019973,2]
[408447887,1773647433070,-500.0,0.00019973,2]
[408447888,1773647433079,-500.0,0.00019973,2]
[408447889,1773647433088,-368.93202184,0.00019973,2]
[408447890,1773647433098,-500.0,0.00019973,2]
[408447891,1773647433107,-270.63531583,0.00019973,2]
[408447892,1773647433117,-336.85380746,0.00019973,2]
[408447893,1773647433126,-506.49172954,0.00019973,2]
[408447894,1773647433136,-526.19704835,0.00019973,2]
[408447895,1773647433146,-501.93995683,0.00019973,2]
[408447896,1773647433159,-500.0,0.00019973,2]
[408447897,1773647433168,-223.16,0.00019973,2]
[408447898,1773647433178,-1344.0,0.0001998,2]
[408447899,1773647433187,-3511.0,0.0001998,2]
[408447900,1773647433201,-623.844,0.0001998,2]
[408447901,1773647433211,-1044.0,0.0001998,2]
[408447902,1773647433221,-3756.0,0.0001998,2]
[408447903,1773647433232,-414.0,0.0001998,2]
[408447904,1773647433242,-151.7129873,0.0001999,2]
[408447905,1773647433252,-200.0,0.0001999,2]
[408447906,1773647433262,-449.29982481,0.0001999,2]
[408447907,1773647433272,-449.29982481,0.0001999,2]
[408447908,1773647433281,-449.29982481,0.0001999,2]
[408447909,1773647433290,-151.0,0.00019997,2]
[408447910,1773647433300,-309.40321204,0.00019999,2]
[408447911,1773647433310,-690.01041515,0.00019999,2]
[408447912,1773647433319,-350.67723425,0.00019999,2]
[408447913,1773647433328,-532.52044599,0.00019999,2]
[408447914,1773647433337,-500.0,0.00019999,2]
[408447915,1773647433347,-500.0,0.00019999,2]
[408447916,1773647433356,-159.39913202,0.00019999,2]
[408447917,1773647433537,-340.60086798,0.00019999,2]
[408447918,1773647433547,-443.07294302,0.00019999,2]
[408447919,1773647433557,-500.0,0.00019999,2]
[408447920,1773647433566,-509.96034624,0.00019999,2]
[408447921,1773647433575,-500.0,0.00019999,2]
[408447922,1773647433585,-558.66690979,0.00019999,2]
[408447923,1773647433594,-500.0,0.00019999,2]
[408447924,1773647433603,-500.0,0.00019999,2]
[408447925,1773647433612,-500.0,0.00019999,2]
[408447926,1773647433622,-500.0,0.00019999,2]
[408447927,1773647433630,-500.0,0.00019999,2]
[408447928,1773647433639,-500.0,0.00019999,2]
[408447929,1773647433647,-500.0,0.00019999,2]
[408447930,1773647433657,-500.0,0.00019999,2]
[408447931,1773647433666,-500.0,0.00019999,2]
[408447932,1773647433676,-154.18560746,0.00019999,2]
[408447933,1773647433685,-500.0,0.00019999,2]
[408447934,1773647433694,-500.0,0.00019999,2]
[408447935,1773647433704,-526.51350935,0.00019999,2]
[408447936,1773647433713,-500.0,0.00019999,2]
[408447937,1773647433722,-556.41101138,0.00019999,2]
[408447938,1773647433732,-199.99999999,0.00019999,2]
[408447939,1773647433743,-501.3535961,0.00019999,2]
[408447940,1773647433752,-500.0,0.00019999,2]
[408447941,1773647433761,-500.0,0.00019999,2]
[408447942,1773647433771,-500.0,0.00019999,2]
[408447943,1773647433779,-500.0,0.00019999,2]
[408447944,1773647433789,-2771.0,0.0002,5]
[408447945,1773647433798,-859.44510518,0.0002,5]
[408447950,1773647438169,-492.71134234,0.000199,2]
[408447952,1773647438179,-500.0,0.00019999,2]
[408447953,1773647438190,-66.09546466,0.00019999,2]
[408447954,1773647438202,-433.90453534,0.00019999,2]
[408447955,1773647438212,-500.0,0.00019999,2]
[408447956,1773647438221,-401.77567318,0.00019999,2]
[408447957,1773647438239,-98.22432682,0.00019999,2]
[408447958,1773647438248,-500.0,0.00019999,2]
[408447959,1773647438258,-109.49769918,0.00019999,2]
[408447960,1773647438272,-390.50230082,0.00019999,2]
[408447961,1773647438281,-448.29755507,0.00019999,2]
[408447962,1773647438290,-500.0,0.00019999,2]
[408447963,1773647438299,-500.0,0.00019999,2]
[408447964,1773647438309,-412.20048078,0.00019999,2]
[408447965,1773647438632,-87.79951922,0.00019999,2]
[408447966,1773647438643,-1359.55489482,0.0002,5]
[408447967,1773647438652,-2148.17521222,0.0002,2]
[408447968,1773647438664,-897.90976214,0.0002,2]
[408447969,1773647438676,-2713.00930235,0.0002,2]
[408447970,1773647438687,-1444.72542873,0.0002,2]
[408447981,1773647440991,-177.53562892,0.000199,3]
[408447982,1773647441001,-463.17396815,0.0002,2]
[408447984,1773647441033,-279.89771197,0.0002,2]
[408447987,1773647443442,-2464.0,0.0001998,2]
[408447988,1773647443452,-246696.09477947,0.0002,2]
[408447989,1773647443463,-901.48698902,0.0002,2]
[408448000,1773647443876,-443.57909262,0.0002,2]
[408448002,1773647446161,-11509.82509922,0.0002,2]
[408448004,1773647446397,-8870.57998341,0.0002,2]
[408448007,1773647497380,150.0,0.0002,7]
[408448008,1773647520998,483.0868,0.0001787,2]
[408448010,1773647685070,150.0,0.0002,7]
[408448011,1773647816386,217.55,9.086e-05,2]
[408448012,1773647871143,282.65,0.0002,7]
[408448013,1773647899992,186.437016,0.000196,7]
[408448016,1773648037641,5000.0,0.000205,10]
[408448017,1773648045984,435.019704,0.00019281,7]
[408448018,1773648076346,6602.70491562,0.00018,7]
[408448019,1773648152196,656.4131229,0.0001,120]
[408448022,1773648339130,-217.55,9.564e-05,2]
[408448023,1773648339150,-229.0,9.564e-05,2]
[408448024,1773648339170,-63.54096302,0.00010042,2]
[408448025,1773648440134,-154.00903698,0.00010042,2]
[408448026,1773648440157,-250.0,0.0001052,2]
[408448027,1773648440180,-217.55,0.0001052,2]
[408448028,1773648440201,-177.9640549,0.00010998,2]
[408448029,1773648449077,-39.5859451,0.00010998,2]
[408448030,1773648449102,-217.55,0.00011476,2]
[408448031,1773648449124,-217.55,0.00011955,2]
[408448032,1773648449145,-217.55,0.00012433,2]
[408448033,1773648449166,-217.55,0.00012911,2]
[408448034,1773648449186,-143.60985851,0.00012933,2]
[408448035,1773648551100,-217.55,0.00013389,2]
[408448036,1773648551121,-245.0,0.00013421,2]
[408448037,1773648551141,-610.03334165,0.0001353,2]
[408448038,1773648551163,-166.0,0.00013576,2]
[408448039,1773648551184,-168.0,0.00013576,2]
[408448040,1773648551405,-217.55,0.00013867,2]
[408448041,1773648551431,-163.99154652,0.00014037,2]
[408448042,1773648551457,-1200.0,0.00014137,2]
[408448043,1773648551480,-1554.0,0.00014138,2]
[408448044,1773648551505,-416.0,0.00014138,2]
[408448045,1773648551527,-200.0,0.00014158,2]
[408448046,1773648551550,-1988.0,0.00014166,2]
[408448047,1773648551572,-194.0,0.00014166,2]
[408448048,1773648551596,-393.0,0.00014195,2]
[408448049,1773648551618,-160.0,0.00014223,2]
[408448050,1773648551639,-600.0,0.00014226,2]
[408448051,1773648551661,-217.55,0.00014346,2]
[408448052,1773648551684,-200.0,0.00014706,2]
[408448053,1773648551709,-217.55,0.00014824,2]
[408448054,1773648551730,-250.0,0.00015,2]
[408448055,1773648551754,-217.55,0.00015302,2]
[408448056,1773648551777,-217.55,0.0001578,2]
[408448057,1773648551798,-1162.0,0.00016,5]
[408448058,1773648551820,-184.8,0.00016006,2]
[408448059,1773648551845,-10035.85151759,0.000162,5]
[408448060,1773648551870,-217.55,0.00016258,2]
[408448061,1773648551891,-217.55,0.00016737,2]
[408448062,1773648551912,-550.0,0.00016737,2]
[408448063,1773648551933,-3486.37731301,0.00017,2]
[408448064,1773648551956,-217.55,0.00017215,2]
[408448065,1773648551979,-166.66,0.00017262,2]
[408448066,1773648552000,-166.66,0.00017626,2]
[408448067,1773648552023,-217.55,0.00017693,2]
[408448068,1773648552044,-274.0,0.00017841,2]
[408448069,1773648552071,-4791.86621437,0.00017869,2]
[408448070,1773648552093,-163.99154652,0.00017869,2]
[408448071,1773648552116,-2471.41711377,0.00017869,2]
[408448072,1773648552139,-156.396185,0.0001787,2]
[408448073,1773648552160,-591.79513279,0.0001787,2]
[408448074,1773648552182,-2021.30056723,0.0001787,2]
[408448075,1773648552204,-241.00181962,0.00017923,2]
[408448076,1773648552226,-4040.65,0.00017945,2]
[408448077,1773648552247,-314.47700878,0.0001796,2]
[408448078,1773648552269,-151.0,0.00017967,2]
[408448079,1773648552291,-500.0,0.00017969,2]
[408448080,1773648552321,-855.57103393,0.00017969,2]
[408448081,1773648552349,-855.57103393,0.00017969,2]
[408448082,1773648552377,-855.57103393,0.00017969,2]
[408448083,1773648552405,-855.57103393,0.00017969,2]
[408448084,1773648552432,-855.57103393,0.00017969,2]
[408448085,1773648552462,-855.57103393,0.00017969,2]
[408448086,1773648552492,-855.57103393,0.00017969,2]
[408448087,1773648552522,-855.57103393,0.00017969,2]
[408448088,1773648552549,-855.57103393,0.00017969,2]
[408448089,1773648552576,-855.57103393,0.00017969,2]
[408448090,1773648552606,-855.57103393,0.00017969,2]
[408448091,1773648552631,-855.57103393,0.00017969,2]
[408448092,1773648552656,-855.57103393,0.00017969,2]
[408448093,1773648552681,-855.57103393,0.00017969,2]
[408448094,1773648552707,-855.57103393,0.00017969,2]
[408448095,1773648552731,-855.57103393,0.00017969,2]
[408448096,1773648552759,-855.57103393,0.00017969,2]
[408448097,1773648552787,-855.57103393,0.00017969,2]
[408448098,1773648552815,-141.61753259,0.00017969,2]
[408448099,1773648608955,318.0,0.000222,14]
[408448110,1773648632237,-690.70295589,0.00017869,2]
[408448111,1773648632250,-297.29704411,0.00017869,2]
[408448112,1773648632261,-825.49456721,0.0001787,2]
[408448113,1773648632270,-5800.02408404,0.0001787,2]
[408448114,1773648632280,-5762.20802451,0.0001787,2]
[408448115,1773648632289,-209.65133919,0.0001796,2]
[408448116,1773648632299,-500.0,0.00017969,2]
[408448117,1773648632309,-500.0,0.00017969,2]
[408448118,1773648632320,-500.0,0.00017969,2]
[408448119,1773648632330,-478.42087606,0.00017969,2]
[408448120,1773648632340,-500.0,0.00017969,2]
[408448121,1773648632350,-363.79317763,0.00017969,2]
[408448122,1773648632359,-500.0,0.00017969,2]
[408448123,1773648632369,-500.0,0.00017969,2]
[408448124,1773648632378,-276.37987504,0.00017969,2]
[408448125,1773648632388,-500.0,0.00017969,2]
[408448126,1773648632398,-500.0,0.00017969,2]
[408448127,1773648632407,-500.0,0.00017969,2]
[408448128,1773648632417,-500.0,0.00017969,2]
[408448129,1773648632427,-500.0,0.00017969,2]
[408448130,1773648632437,-336.21810247,0.00017969,2]
[408448131,1773648632446,-500.0,0.00017969,2]
[408448132,1773648632455,-500.0,0.00017969,2]
[408448133,1773648632465,-500.0,0.00017969,2]
[408448134,1773648632475,-500.0,0.00017969,2]
[408448135,1773648632490,-649.85993116,0.00017969,2]
[408448136,1773648632500,-590.52874081,0.00017969,2]
[408448137,1773648632510,-157.414,0.00017969,2]
[408448139,1773648632520,-500.0,0.00017969,2]
[408448141,1773648632531,-500.0,0.00017969,2]
[408448143,1773648632542,-500.0,0.00017969,2]
[408448144,1773648632553,-500.0,0.00017969,2]
[408448146,1773648632566,-500.0,0.00017969,2]
[408448148,1773648632576,-565.08716826,0.00017969,2]
[408448151,1773648632586,-500.0,0.00017969,2]
[408448154,1773648632596,-504.81663731,0.00017969,2]
[408448157,1773648632607,-500.0,0.00017969,2]
[408448160,1773648632618,-500.0,0.00017969,2]
[408448163,1773648632629,-500.0,0.00017969,2]
[408448166,1773648632639,-500.0,0.00017969,2]
[408448169,1773648632650,-500.0,0.00017969,2]
[408448173,1773648632660,-500.0,0.00017969,2]
[408448177,1773648632671,-500.0,0.00017969,2]
[408448180,1773648632681,-24.44025027,0.00017969,2]
[408448200,1773648633216,-488.32277684,0.00017969,2]
[408448201,1773648633227,-500.0,0.00017969,2]
[408448202,1773648633238,-500.0,0.00017969,2]
[408448203,1773648633248,-500.0,0.00017969,2]
[408448204,1773648633258,-500.0,0.00017969,2]
[408448205,1773648633268,-500.0,0.00017969,2]
[408448206,1773648633278,-500.0,0.00017969,2]
[408448207,1773648633288,-500.0,0.00017969,2]
[408448208,1773648633297,-500.0,0.00017969,2]
[408448209,1773648633307,-500.0,0.00017969,2]
[408448210,1773648633316,-500.0,0.00017969,2]
[408448211,1773648633326,-500.0,0.00017969,2]
[408448212,1773648633335,-500.0,0.00017969,2]
[408448213,1773648633345,-500.0,0.00017969,2]
[408448214,1773648633355,-285.52,0.00017969,2]
[408448215,1773648633364,-2143.0,0.0001797,5]
[408448216,1773648633374,-2070068.33141148,0.0001797,2]
[408448217,1773648633394,-195651.68733934,0.0001797,2]
[408448218,1773648633405,-19038.17364478,0.0001797,2]
[408448219,1773648633416,-905.49547409,0.0001797,2]
[408448220,1773648633428,-1163.55607731,0.0001797,2]
[408448221,1773648633490,-1306.980303,0.0001797,2]
[408448222,1773648633501,-15669.18778609,0.0001797,2]
[408448223,1773648638908,-2638.15312271,0.0001797,2]
[408448224,1773648638924,-49249.03429514,0.0001797,2]
[408448225,1773648638937,-6713.72108542,0.0001797,2]
[408448226,1773648639037,-1132.68254729,0.0001797,2]
[408448227,1773648639095,-136462.99691335,0.0001797,2]
[408448228,1773648639105,-925.0,0.0001797,2]
[408448229,1773648639114,-547.22393196,0.00017973,2]
[408448230,1773648639124,-500.0,0.00017973,2]
[408448231,1773648639134,-502.3399893,0.00017973,2]
[408448250,1773648639144,-500.0,0.00017973,2]
[408448253,1773648639339,-549.17656765,0.00017973,2]
[408448255,1773648639349,-501.13618715,0.00017973,2]
[408448257,1773648639359,-500.0,0.00017973,2]
[408448259,1773648639368,-502.53301199,0.00017973,2]
[408448261,1773648639381,-500.0,0.00017973,2]
[408448263,1773648639392,-500.0,0.00017973,2]
[408448265,1773648639403,-501.21138028,0.00017973,2]
[408448267,1773648639413,-169.2321029,0.00017973,2]
[408448269,1773648639423,-500.0,0.00017973,2]
[408448271,1773648639433,-500.48871606,0.00017973,2]
[408448273,1773648639442,-500.0,0.00017973,2]
[408448275,1773648639452,-505.74549276,0.00017973,2]
[408448277,1773648639461,-500.0,0.00017973,2]
[408448279,1773648639470,-500.0,0.00017973,2]
[408448281,1773648639481,-501.22858725,0.00017973,2]
[408448283,1773648639493,-500.76051827,0.00017973,2]
[408448285,1773648639503,-500.0,0.00017973,2]
[408448287,1773648639514,-501.19193472,0.00017973,2]
[408448289,1773648639523,-502.97363603,0.00017973,2]
[408448290,1773648639535,-501.36558615,0.00017973,2]
[408448291,1773648639544,-500.0,0.00017973,2]
[408448292,1773648639555,-502.86209366,0.00017973,2]
[408448293,1773648639564,-166.66,0.00017989,2]
[408448294,1773648639573,-150.0,0.00018026,2]
[408448295,1773648639584,-5762.20802451,0.00018096,2]
[408448296,1773648639593,-5800.02408402,0.0001816,2]
[408448297,1773648639603,-827.34,0.00018171,2]
[408448298,1773648639612,-150.0,0.00018171,2]
[408448299,1773648639622,-157.27,0.00018171,2]
[408448300,1773648639632,-1600.0,0.00018171,2]
[408448301,1773648639641,-200.0,0.00018171,2]
[408448302,1773648639650,-2200.4,0.00018171,2]
[408448303,1773648639660,-5878.5,0.00018171,2]
[408448304,1773648639669,-3305.45,0.00018171,2]
[408448305,1773648639679,-9564.11,0.00018171,2]
[408448306,1773648639688,-217.55,0.00018171,2]
[408448307,1773648639697,-500.0,0.00018243,2]
[408448308,1773648639708,-5762.20802451,0.00018321,2]
[408448309,1773648639718,-166.66,0.00018353,2]
[408448310,1773648639729,-5800.02408402,0.0001845,2]
[408448311,1773648639739,-500.0,0.00018517,2]
[408448312,1773648639749,-1002.71983078,0.00018521,2]
[408448313,1773648639759,-1000.0,0.00018521,2]
[408448314,1773648639769,-1002.29442635,0.00018521,2]
[408448315,1773648639779,-1002.76550357,0.00018521,2]
[408448316,1773648639789,-1000.0,0.00018521,2]
[408448317,1773648639799,-329.97671563,0.00018521,2]
[408448318,1773648639809,-1000.0,0.00018521,2]
[408448319,1773648639819,-156.39618497,0.00018547,2]
[408448320,1773648639828,-5762.20802451,0.00018547,2]
[408448321,1773648639838,-245.0,0.00018663,2]
[408448322,1773648639847,-166.44,0.00018716,2]
[408448323,1773648639857,-166.66,0.00018716,2]
[408448324,1773648639866,-5800.02408402,0.0001874,2]
[408448325,1773648639876,-5762.20802451,0.00018772,2]
[408448326,1773648639885,-500.0,0.00018791,2]
[408448327,1773648639895,-245.0,0.00018842,2]
[408448328,1773648639904,-591.79513277,0.00018885,2]
[408448329,1773648639914,-245.0,0.00018887,2]
[408448330,1773648639924,-245.0,0.00018944,2]
[408448331,1773648639933,-245.0,0.00018946,2]
[408448332,1773648639944,-245.0,0.00018955,2]
[408448333,1773648639953,-4791.86621428,0.00018997,2]
[408448334,1773648639963,-5762.20802451,0.00018998,2]
[408448335,1773648639981,-250.0,0.00018999,2]
[408448336,1773648639991,-500.0,0.00018999,2]
[408448337,1773648640001,-500.0,0.00018999,2]
[408448338,1773648640011,-250.0,0.00018999,2]
[408448339,1773648640022,-500.0,0.00018999,2]
[408448340,1773648640033,-250.0,0.00018999,2]
[408448341,1773648640044,-500.0,0.00018999,2]
[408448342,1773648640054,-500.0,0.00018999,2]
[408448343,1773648640064,-494.1269886,0.00018999,2]
[408448344,1773648640074,-250.0,0.00018999,2]
[408448345,1773648640083,-250.0,0.00018999,2]
[408448346,1773648640092,-750.0,0.00018999,2]
[408448347,1773648640102,-250.0,0.00018999,2]
[408448348,1773648640114,-705.19462612,0.00018999,2]
[408448349,1773648640124,-250.0,0.00018999,2]
[408448350,1773648640133,-250.0,0.00018999,2]
[408448351,1773648640143,-500.0,0.00018999,2]
[408448352,1773648640152,-500.0,0.00018999,2]
[408448353,1773648640162,-500.0,0.00018999,2]
[408448354,1773648640171,-500.0,0.00018999,2]
[408448355,1773648640181,-500.0,0.00018999,2]
[408448356,1773648640191,-500.0,0.00018999,2]
[408448357,1773648640200,-151.0,0.00018999,2]
[408448358,1773648640210,-500.0,0.00018999,2]
[408448359,1773648640220,-500.0,0.00018999,2]
[408448360,1773648640229,-500.0,0.00018999,2]
[408448361,1773648640239,-500.0,0.00018999,2]
[408448362,1773648640249,-500.0,0.00018999,2]
[408448363,1773648640259,-500.0,0.00018999,2]
[408448364,1773648640268,-174.61919141,0.00018999,2]
[408448365,1773648640278,-200.0,0.00018999,2]
[408448366,1773648640287,-500.0,0.00018999,2]
[408448367,1773648640296,-500.0,0.00018999,2]
[408448368,1773648640307,-500.0,0.00018999,2]
[408448369,1773648640317,-500.0,0.00018999,2]
[408448370,1773648640326,-500.0,0.00018999,2]
[408448371,1773648640336,-500.0,0.00018999,2]
[408448372,1773648640346,-500.0,0.00018999,2]
[408448373,1773648640359,-500.0,0.00018999,2]
[408448374,1773648640369,-500.0,0.00018999,2]
[408448375,1773648640379,-500.0,0.00018999,2]
[408448376,1773648640389,-517.83885236,0.00018999,2]
[408448377,1773648640399,-5041.63234419,0.00019,2]
[408448378,1773648640408,-923.0,0.00019004,2]
[408448379,1773648640418,-5800.02408402,0.0001903,2]
[408448380,1773648640428,-151.0,0.00019054,2]
[408448381,1773648640437,-500.0,0.00019065,2]
[408448382,1773648640446,-1000.0,0.00019068,2]
[408448383,1773648640456,-827.34,0.0001908,2]
[408448385,1773648640467,-166.66,0.0001908,2]
[408448386,1773648640476,-151.0,0.00019109,2]
[408448387,1773648640491,-245.0,0.00019115,2]
[408448388,1773648640501,-447.0,0.00019197,2]
[408448389,1773648640510,-4791.86621428,0.00019223,2]
[408448390,1773648640520,-156.39618497,0.00019223,2]
[408448391,1773648640532,-5762.20802451,0.00019223,2]
[408448392,1773648640542,-447.0,0.00019305,2]
[408448393,1773648640552,-5800.02408402,0.0001932,2]
[408448394,1773648640563,-245.0,0.00019327,2]
[408448395,1773648640573,-500.0,0.00019339,2]
[408448396,1773648640583,-245.0,0.00019375,2]
[408448397,1773648640592,-4791.86621428,0.00019449,2]
[408448398,1773648640602,-157.27,0.00019469,2]
[408448399,1773648640611,-2000.0,0.000195,2]
[408448400,1773648640623,-1000.0,0.000195,2]
[408448401,1773648640634,-253.13,0.00019541,2]
[408448402,1773648640644,-200.0,0.00019547,2]
[408448403,1773648640654,-181.08010149,0.00019547,2]
[408448404,1773648640664,-5800.02408402,0.0001961,2]
[408448405,1773648640674,-2500.0,0.00019656,2]
[408448406,1773648640684,-4791.86621428,0.00019674,2]
[408448407,1773648640694,-447.0,0.0001969,2]
[408448408,1773648640704,-500.0,0.00019725,2]
[408448409,1773648640714,-427.0,0.00019725,2]
[408448410,1773648640727,-150.0,0.00019725,2]
[408448411,1773648640738,-500.0,0.00019725,2]
[408448412,1773648640748,-500.0,0.00019725,2]
[408448413,1773648640758,-150.0,0.00019725,2]
[408448414,1773648640772,-500.0,0.00019725,2]
[408448415,1773648640784,-155.0,0.00019766,2]
[408448416,1773648640794,-2572.63,0.00019771,2]
[408448417,1773648640804,-500.0,0.0001978,2]
[408448418,1773648640814,-427.0,0.0001978,2]
[408448419,1773648640824,-500.0,0.0001978,2]
[408448420,1773648640834,-500.0,0.0001978,2]
[408448421,1773648640843,-150.0,0.0001978,2]
[408448422,1773648640853,-500.0,0.0001978,2]
[408448423,1773648640863,-2625.851,0.00019797,2]
[408448424,1773648640873,-2464.0,0.00019797,2]
[408448425,1773648640882,-444.44444,0.000198,2]
[408448426,1773648640891,-444.44445,0.000198,2]
[408448427,1773648640901,-500.0,0.00019835,2]
[408448428,1773648640910,-427.0,0.00019835,2]
[408448429,1773648640920,-500.0,0.00019835,2]
[408448430,1773648640931,-153.79412431,0.00019835,2]
[408448431,1773648640940,-232.79913095,0.00019835,2]
[408448432,1773648640950,-500.0,0.00019835,2]
[408448433,1773648640959,-174.518,0.00019873,2]
[408448434,1773648640968,-2191.333,0.00019873,2]
[408448435,1773648640978,-500.0,0.00019889,2]